Cogmind - Beta 10 @@@ ROGUE MODE // 2020.09.18 @ 11:06:07 Player: Cracklepappy Result: Self-destructed Performance ------------- Evolutions (5) 2500 Regions Visited (17) 3400 Robots Destroyed (209) 1045 Value Destroyed (9398) 9398 Prototype IDs (19) 380 Alien Tech Used (0) 0 Bonus (6618) 6618 TOTAL SCORE: 23341 Bonus ------- High Alert Combat Kills 511 Follower Combat Kills 2605 Entered Garrisons 800 Used RIF Installer 2000 Met Zhirov 300 Built Enhanced Grunts 300 A7 Reached Mainframe 300 Friendly Fire -198 Cogmind --------- Core Integrity 361/1000 Matter 276/300 Energy 100/100 System Corruption 3% Temperature Cool (9) Movement Core (1600) Ox31 Location -5/Factory Parts ------- > --- POWER (1) -------- (None) > --- PROPULSION (2) --- (None) > --- UTILITY (12) ----- High-capacity Storage Unit High-capacity Storage Unit High-capacity Storage Unit Enhanced Optical Array Advanced Signal Interpreter Core Analyzer > --- WEAPON (2) ------- (None) > --- INVENTORY (28) --- Light Fission Core Advanced Heat Sink Advanced Cooling System Advanced Cooling System Coolant Injector High-capacity Storage Unit Advanced Sensor Array Advanced Terrain Scan Processor Relay Coupler [NC] (37) Relay Coupler [NC] (36) Relay Coupler [NC] (37) Relay Coupler [ARC] Relay Coupler [Grunt] (32) Relay Coupler [Grunt] (39) Relay Coupler [Sentry] (24) Relay Coupler [Hunter] (19) Relay Coupler [Behemoth] (16) Long-range Tractor Beam Advanced Datajack Improved Remote Datajack Power Sword Power Sword Peak State ------------ > --- POWER ------------ Quantum Reactor > --- PROPULSION ------- Advanced Treads Advanced Treads > --- UTILITY ---------- Advanced Heat Sink Advanced Heat Sink Advanced Heat Sink High-capacity Storage Unit High-capacity Storage Unit High-capacity Storage Unit High-capacity Storage Unit Enhanced Optical Array Advanced Signal Interpreter Advanced Targeting Computer Improved Kinecellerator Centrium Medium Armor Plating > --- WEAPON ----------- Heavy Laser Gauss Rifle > --- INVENTORY -------- Light Angular Momentum Engine Light Fission Core Improved Medium Treads Improved Medium Treads Advanced Heat Sink Advanced Cooling System Advanced Cooling System Coolant Injector High-capacity Storage Unit Energy Well Matter Compressor Advanced Sensor Array Advanced Terrain Scan Processor Core Analyzer Relay Coupler [NC] Relay Coupler [NC] Relay Coupler [NC] Relay Coupler [ARC] Relay Coupler [Grunt] Relay Coupler [Grunt] Relay Coupler [Sentry] Relay Coupler [Hunter] Relay Coupler [Behemoth] Long-range Tractor Beam Heavy Laser Advanced Variable Charge Gun Improved EM Pulse Cannon Neutron Cannon Gauss Rifle Gauss Rifle Gauss Rifle Gauss Rifle Advanced Datajack Improved Remote Datajack Power Sword Power Sword [Rating: 82] Favorites ----------- Power Light Nuclear Core Engine Improved Ion Engine Power Core Light Nuclear Core Reactor Quantum Reactor Propulsion Light Treads Treads Light Treads Wheel Wheel Utility High-capacity Storage Unit Device Advanced Heat Sink Storage High-capacity Storage Unit Processor Advanced Visual Processing Unit Hackware Relay Coupler [NC] Protection Improved Medium Armor Plating Weapon Gauss Rifle Energy Gun Heavy Laser Energy Cannon Light EM Pulse Cannon Ballistic Gun Gauss Rifle Launcher Heavy Rocket Launcher Special Weapon Remote Datajack Slashing Weapon Katana Special Melee Weapon Advanced Datajack Build | -11 -10 -10 -10 -9 -8 -8 -8 -8 -7 -7 -6 -6 -6 -6 -6 -6 -5 ------- Run | Scr Mat Min Exi Min Mat Gar Mat Gar Fac Gar Fac Ext Cet Arc Hub Gar Fac Slots Evolved 10 | . . . . . 4 . . . 2 . 2 . . . . . 2 Power . | . . . . . . . . . . . . . . . . . . Propulsion . | . . . . . . . . . . . . . . . . . . Utility 10 | . . . . . 4 . . . 2 . 2 . . . . . 2 Weapon . | . . . . . . . . . . . . . . . . . . Parts Attached 259 | 8 8 5 1 1 37 12 . 14 10 25 35 23 15 6 12 20 27 Power 17 | 1 2 . . . 1 1 . 1 . 2 3 . . 2 . 3 1 Engine 9 | 1 1 . . . . 1 . 1 . 1 3 . . . . . 1 Core 3 | . 1 . . . 1 . . . . 1 . . . . . . . Reactor 5 | . . . . . . . . . . . . . . 2 . 3 . Propulsion 44 | 2 3 2 . . 9 5 . 3 1 2 2 2 . 2 2 4 5 Treads 40 | . 1 2 . . 9 5 . 3 1 2 2 2 . 2 2 4 5 Leg . | . . . . . . . . . . . . . . . . . . Wheel 4 | 2 2 . . . . . . . . . . . . . . . . Hover . | . . . . . . . . . . . . . . . . . . Flight . | . . . . . . . . . . . . . . . . . . Utility 74 | 2 2 . 1 . 9 . . 1 5 10 13 3 11 1 4 4 8 Device 21 | . . . . . 2 . . . 3 3 4 2 1 . 1 1 4 Storage 17 | 2 2 . 1 . 3 . . . 1 . 4 . . . . 1 3 Processor 7 | . . . . . 1 . . . . . 2 . . . 2 1 1 Hackware 11 | . . . . . . . . . . 3 3 1 3 . 1 . . Protection 18 | . . . . . 3 . . 1 1 4 . . 7 1 . 1 . Artifact . | . . . . . . . . . . . . . . . . . . Weapon 124 | 3 1 3 . 1 18 6 . 9 4 11 17 18 4 1 6 9 13 Energy Gun 17 | 1 . . . . 2 . . . . . 2 1 1 . . 5 5 Energy Cannon 18 | . . 2 . . 1 . . . . . 7 4 . . . 2 2 Ballistic Gun 54 | 2 1 1 . 1 11 3 . 5 2 7 3 6 3 . 3 . 6 Ballistic Cannon . | . . . . . . . . . . . . . . . . . . Launcher 13 | . . . . . 2 3 . 2 2 . 1 1 . . . 2 . Special Weapon 15 | . . . . . 2 . . . . 3 3 5 . . 2 . . Impact Weapon . | . . . . . . . . . . . . . . . . . . Slashing Weapon 6 | . . . . . . . . 2 . 1 1 1 . 1 . . . Piercing Weapon . | . . . . . . . . . . . . . . . . . . Special Melee Weapon 1 | . . . . . . . . . . . . . . . 1 . . Unidentified Prototypes 5 | . . . . . 2 . . . . . . . 3 . . . . Parts Lost 96 | . 4 2 . . 12 . . 5 . 7 8 2 . 9 3 13 31 Power 11 | . 1 . . . 2 . . 1 . 1 1 . . 1 1 1 2 Propulsion 23 | . 2 . . . 4 . . 2 . 1 2 . . 2 . 3 7 Utility 25 | . . . . . 1 . . 1 . 3 3 . . 4 . 4 9 Weapon 37 | . 1 2 . . 5 . . 1 . 2 2 2 . 2 2 5 13 Highest Loss Streak 23 | . 3 2 . . 2 . . 3 . 2 2 1 . 9 3 11 23 Average Slot Usage (%) 97 | . 96 99 100 100 87 98 100 96 99 99 95 99 99 91 96 99 93 Engine 4 | . 10 . . . . 7 9 6 7 5 5 6 6 4 . . . Core 2 | . 2 14 14 14 2 . . . . . . . . . . . . Treads 16 | . 12 20 28 28 18 18 18 18 15 15 12 13 13 12 13 13 9 Wheel 1 | . 15 7 . . . . . . . . . . . . . . . Device 3 | . . . . . 2 . . . 2 4 11 1 . . 6 5 14 Storage 31 | . 28 28 28 28 35 36 36 36 37 35 29 26 26 26 26 31 26 Processor 8 | . . . . . 6 9 9 9 7 7 9 13 13 11 15 17 17 Hackware 4 | . . . . . . . . . . 2 5 24 16 17 10 3 . Protection 5 | . . . . . 4 9 9 9 11 9 5 . 9 5 6 5 4 Energy Gun 1 | . . . . . . . . . . . 1 . . . . 9 4 Energy Cannon 2 | . . 13 14 3 . . . . . . 4 1 . . . 1 . Ballistic Gun 12 | . 26 14 14 24 16 17 18 16 14 13 3 7 13 7 8 1 5 Naked Turns . | . . . . . . . . . . . . . . . . . . Heaviest Build 202 | 17 41 45 60 60 143 156 150 150 158 161 175 159 173 159 158 171 202 Greatest Support 58 | 26 26 40 40 40 58 40 40 40 42 44 44 52 52 52 44 44 44 Greatest Overweight (x) 37 | 1 4 4 1 1 3 3 3 3 3 3 3 3 3 3 3 4 37 Average Overweight (x) 2 | . 3 2 1 1 2 3 3 3 3 3 3 2 2 3 3 3 3 Largest Inventory Capacity 44 | 8 16 16 18 18 36 36 36 36 36 36 36 36 36 36 36 36 44 Average Capacity 31 | 6 15 16 17 18 33 36 36 36 36 36 36 36 36 36 36 36 35 Most Carried 36 | 8 16 16 18 18 34 36 36 36 36 36 36 36 36 36 31 36 36 Average Carried 30 | 3 14 15 17 17 32 35 36 35 35 35 35 35 34 34 27 31 33 Final Capacity 36 | 8 16 16 18 18 36 36 36 36 36 36 36 36 36 36 36 36 28 Final Carried 36 | 8 16 16 18 18 34 36 36 36 36 35 35 36 35 32 31 36 22 Class Distribution -------------------- 44% | Bothacker-Mutant 26% | Hauler-Mutant 11% | Scavenger-Mutant 8% | Mutant 5% | Commander-Mutant 3% | Botlord-Mutant Dominant Class ---------------- Mutant | -10/Materials Mutant | -10/Mines Scavenger-Mutant | -10/Exiles Scavenger-Mutant | -9/Mines Hauler-Mutant | -8/Materials Hauler-Mutant | -8/Garrison Hauler-Mutant | -8/Materials Hauler-Mutant | -8/Garrison Bothacker-Mutant | -7/Factory Bothacker-Mutant | -7/Garrison Bothacker-Mutant | -6/Factory Bothacker-Mutant | -6/Extension Hauler-Mutant | -6/Cetus Hauler-Mutant | -6/Archives Hauler-Mutant | -6/Hub_04(d) Bothacker-Mutant | -6/Garrison Botlord-Mutant | -5/Factory Resources | -11 -10 -10 -10 -9 -8 -8 -8 -8 -7 -7 -6 -6 -6 -6 -6 -6 -5 ----------- Run | Scr Mat Min Exi Min Mat Gar Mat Gar Fac Gar Fac Ext Cet Arc Hub Gar Fac Matter Collected 6638 | 298 380 82 10 79 981 450 . 319 248 982 738 757 250 18 . 587 459 Remotely 201 | . . . . . . . . . 201 . . . . . . . . Salvage Created 8190 | 87 540 198 . 244 1491 504 . 451 419 830 1305 259 65 39 70 839 849 Parts 429 | 10 41 6 . 17 100 50 . 20 23 35 50 12 1 3 3 32 26 Haulers Intercepted 5 | . 1 . . . 3 . . . . . 1 . . . . . . Recyclers Shooed 2 | . . . . . 1 . . . . . 1 . . . . . . Parts Field Recycled . | . . . . . . . . . . . . . . . . . . Retrieved Matter . | . . . . . . . . . . . . . . . . . . Parts Self-Destructed . | . . . . . . . . . . . . . . . . . . Prevented . | . . . . . . . . . . . . . . . . . . Kills | -11 -10 -10 -10 -9 -8 -8 -8 -8 -7 -7 -6 -6 -6 -6 -6 -6 -5 ------- Run | Scr Mat Min Exi Min Mat Gar Mat Gar Fac Gar Fac Ext Cet Arc Hub Gar Fac Combat Hostiles Destroyed 181 | . 14 4 . 7 33 20 . 16 10 15 22 5 1 . 1 21 12 Guns 122 | . 14 2 . 7 29 13 . 5 4 15 4 3 1 . 1 13 11 Cannons 14 | . . 2 . . 1 . . . . . 9 1 . . . 1 . AOE 40 | . . . . . 3 7 . 11 6 . 5 1 . . . 6 1 Classes Destroyed 14 | 2 4 . . 1 4 1 . . 1 . 1 . . . . . . Worker 5 | . . . . . 3 . . . . . 1 1 . . . . . Builder 5 | . . . . . 3 . . . 1 . 1 . . . . . . Tunneler 2 | 2 . . . . . . . . . . . . . . . . . Hauler 5 | . 1 . . . 3 . . . . . 1 . . . . . . Recycler 4 | 1 . . . . 2 . . . . . . . . . . . 1 Operator 1 | . . . . . . . . . . . 1 . . . . . . Watcher 6 | . 3 . . . 2 . . . . . 1 . . . . . . Swarmer 52 | . 5 . . 2 17 10 . 3 . . 5 2 . . . 8 . Grunt 90 | . 9 4 . 3 5 4 . 13 7 9 15 3 1 . . 10 7 Brawler 6 | . . . . 2 . . . . 1 2 . . . . . . 1 Duelist 2 | . . . . . . 1 . . . . . . . . . . 1 Sentry 17 | . . . . . 8 5 . . . 2 . . . . 1 1 . Hunter 8 | . . . . . 3 . . . . 1 . . . . . 1 3 Programmer 6 | . . . . . . . . . 2 1 2 . . . . 1 . Best Kill Streak 13 | 3 3 2 . 3 10 5 . 13 8 3 6 3 1 . 1 6 4 Combat Bots Only 13 | . 3 2 . 3 6 5 . 13 7 3 4 2 1 . 1 6 4 Max Kills in Single Turn 4 | 1 1 1 . 2 4 3 . 4 3 1 4 1 1 . 1 2 1 Gunslinging 1 | . . . . 1 . . . . . . . . . . . 1 . Exploded 4 | . . . . . 3 3 . 4 3 . 3 1 . . . 2 1 Melee . | . . . . . . . . . . . . . . . . . . Uniques/NPCs Destroyed . | . . . . . . . . . . . . . . . . . . Combat | -11 -10 -10 -10 -9 -8 -8 -8 -8 -7 -7 -6 -6 -6 -6 -6 -6 -5 -------- Run | Scr Mat Min Exi Min Mat Gar Mat Gar Fac Gar Fac Ext Cet Arc Hub Gar Fac Damage Taken 16923 | . 645 233 . 244 1599 613 . 799 171 1875 1581 555 163 1516 952 1699 4278 Core 2444 | . 145 29 . 54 223 206 . 98 16 211 60 70 36 350 134 173 639 Absorbed by Shields 195 | . . . . . . . . . . . . 57 110 . . 28 . Core Remaining (%) 36 | 100 . . . 8 . . . 4 . 67 . . . . . 3 . Volleys Fired 620 | 3 60 16 . 12 114 39 . 21 9 78 66 50 10 . 10 54 78 Largest 2 | 2 2 2 . 2 2 2 . 2 2 2 2 2 2 . 2 2 2 Hottest 170 | 40 40 112 . 79 100 78 . 78 67 56 150 89 58 . 63 155 170 Shots Fired 1131 | 6 115 29 . 24 218 77 . 36 18 134 124 59 21 . 17 100 153 Gun 942 | 6 115 19 . 23 211 70 . 26 15 123 48 19 21 . 15 83 148 Cannon 105 | . . 10 . 1 2 . . . . . 69 5 . . . 13 5 Launcher 27 | . . . . . 1 7 . 10 3 . 1 1 . . . 4 . Special 57 | . . . . . 4 . . . . 11 6 34 . . 2 . . Kinetic 815 | 6 115 19 . 23 211 70 . 26 15 123 38 18 21 . 15 23 92 Thermal 177 | . . . . . 4 . . . . . 38 1 . . . 73 61 Explosive 27 | . . . . . 1 7 . 10 3 . 1 1 . . . 4 . Electromagnetic 59 | . . 10 . 1 2 . . . . . 41 5 . . . . . Robot Hit Streak 36 | 4 10 9 . 7 17 13 . 10 4 15 9 14 8 . 9 17 36 Robot Miss Streak 6 | . 5 2 . 2 6 2 . 3 3 4 6 3 3 . 1 3 3 Penetration Max 1 | . . . . . 1 1 . 1 1 1 . . 1 . . 1 1 Secondary Targets 12 | . . . . 2 2 1 . . . 1 . 1 . . . 2 3 Max Gunslinging Chain 1 | . . . . 1 1 1 . . . 1 . 1 . . . 1 1 Shots Hit Robots 772 | 4 73 20 . 17 139 49 . 20 10 93 81 45 14 1 15 72 119 Core Hits 378 | 4 32 9 . 9 64 28 . 27 19 33 39 11 7 1 3 44 48 Critical Hits 15 | . . . . . 2 . . 2 1 1 2 1 . . . 3 3 Critical Kills 6 | . . . . . 1 . . 1 1 1 . . . . . 1 1 Critical Parts Destroyed 9 | . . . . . 1 . . 1 . . 2 1 . . . 2 2 Melee Attacks 19 | . . . . . . . . 2 . 1 1 12 . 1 2 . . Impact . | . . . . . . . . . . . . . . . . . . Slashing 17 | . . . . . . . . 2 . 1 1 12 . 1 . . . Piercing . | . . . . . . . . . . . . . . . . . . Sneak Attacks . | . . . . . . . . . . . . . . . . . . Combat Hostiles . | . . . . . . . . . . . . . . . . . . Follow-up Attacks . | . . . . . . . . . . . . . . . . . . Damage Inflicted 20313 | 51 903 346 . 275 3252 1793 . 1444 935 1795 2758 506 427 150 308 2367 3003 Guns 13075 | 51 903 135 . 255 2602 1018 . 427 242 1795 620 317 427 . 308 1522 2453 Cannons 2220 | . . 167 . 20 46 . . . . . 1461 89 . . . 253 184 Explosions 4811 | . . 44 . . 604 775 . 1017 693 . 677 43 . . . 592 366 Melee 207 | . . . . . . . . . . . . 57 . 150 . . . Ramming . | . . . . . . . . . . . . . . . . . . Kinetic 11063 | 51 903 135 . 255 2602 1018 . 427 242 1795 496 298 427 . 308 481 1625 Thermal 3011 | . . 44 . . . . . . . . 642 19 . . . 1294 1012 Explosive 4767 | . . . . . 604 775 . 1017 693 . 677 43 . . . 592 366 Electromagnetic 1265 | . . 167 . 20 46 . . . . . 943 89 . . . . . Impact . | . . . . . . . . . . . . . . . . . . Slashing 207 | . . . . . . . . . . . . 57 . 150 . . . Piercing . | . . . . . . . . . . . . . . . . . . Highest Corruption 10 | . . . . . . . . . . 6 7 8 8 8 8 10 3 Average Corruption 6 | . . . . . . . . . . 2 6 7 8 8 8 9 2 Corruption Purged . | . . . . . . . . . . . . . . . . . . Effects 216 | . . . . . . . . . . 23 46 71 13 4 6 53 . Message Errors 46 | . . . . . . . . . . 3 14 16 3 1 1 8 . Matter Fused 44 | . . . . . . . . . . 2 9 19 2 1 1 10 . Heat Flow Errors 26 | . . . . . . . . . . 5 7 6 1 . . 7 . Energy Discharges 18 | . . . . . . . . . . 3 2 7 2 1 . 3 . Parts Rejected 4 | . . . . . . . . . . . 2 1 . . . 1 . Data Loss (minor) 22 | . . . . . . . . . . 3 3 8 . 1 . 7 . Data Loss (major) 12 | . . . . . . . . . . 3 . 5 1 . . 3 . Misfires 13 | . . . . . . . . . . 1 1 3 2 . 1 5 . Alerts 1 | . . . . . . . . . . . . . . . . 1 . Misdirections 3 | . . . . . . . . . . . . . . . . 3 . Targeting Errors 20 | . . . . . . . . . . 3 7 5 1 . 1 3 . Weapon Failures 7 | . . . . . . . . . . . 1 1 1 . 2 2 . Overload Shots . | . . . . . . . . . . . . . . . . . . Overflow Damage 155 | . . . . . 46 25 . 18 20 . . . . . . 6 40 Projectiles 1 | . . . . . . . . . . . . . . . . . 1 Explosions 154 | . . . . . 46 25 . 18 20 . . . . . . 6 39 Melee . | . . . . . . . . . . . . . . . . . . Knockbacks . | . . . . . . . . . . . . . . . . . . Impact . | . . . . . . . . . . . . . . . . . . Kinetic . | . . . . . . . . . . . . . . . . . . Secondary . | . . . . . . . . . . . . . . . . . . Self-Inflicted Damage 115 | . . . . . . 2 . 63 . . . . . . . 50 . Shots 4 | . . . . . . 1 . 2 . . . . . . . 1 . Rammed . | . . . . . . . . . . . . . . . . . . Targets Rammed . | . . . . . . . . . . . . . . . . . . Kicked . | . . . . . . . . . . . . . . . . . . Crushed . | . . . . . . . . . . . . . . . . . . Highest Temperature 306 | . 20 181 . 24 12 27 . 136 5 255 306 177 171 . . 175 8 Average Temperature 50 | . 7 54 . 6 5 7 . 67 3 47 79 34 34 . . 47 8 Received Heat Transfer 4072 | . 309 126 . 60 369 108 . 396 63 612 423 160 30 . 300 351 765 Siege Activations . | . . . . . . . . . . . . . . . . . . Robots Corrupted 4 | . . . . . . . . . . . 4 . . . . . . Combat Hostiles 4 | . . . . . . . . . . . 4 . . . . . . Parts Fried 7 | . . . . . . . . . . . 7 . . . . . . Impact Corruptions . | . . . . . . . . . . . . . . . . . . Robots Melted 1 | . . . . . . . . . . . . . . . . 1 . Combat Hostiles 1 | . . . . . . . . . . . . . . . . 1 . Parts Melted 20 | . . . . 2 . . . . . . 2 . . . . 14 2 Heat Transferred 4881 | . . 50 . . . . . . . . 1222 37 . . . 2154 1418 Parts Sabotaged . | . . . . . . . . . . . . . . . . . . Parts Stolen . | . . . . . . . . . . . . . . . . . . Parts Stripped . | . . . . . . . . . . . . . . . . . . Power Chain Reactions 1 | . . 1 . . . . . . . . . . . . . . . Missiles Intercepted . | . . . . . . . . . . . . . . . . . . Alert | -11 -10 -10 -10 -9 -8 -8 -8 -8 -7 -7 -6 -6 -6 -6 -6 -6 -5 ------- Run | Scr Mat Min Exi Min Mat Gar Mat Gar Fac Gar Fac Ext Cet Arc Hub Gar Fac Peak Influence 893 | 15 169 115 . 183 462 893 434 604 317 557 543 533 669 721 267 639 462 Initial 434 | . 9 35 . . . 258 434 184 317 96 291 203 193 267 199 144 335 Average 283 | 6 59 40 . 66 212 663 350 465 110 389 341 161 435 412 229 417 316 Maximum Alert Level 3 | . . . . . 2 3 2 2 1 2 2 2 2 3 1 2 2 Low Security (%) 40 | 100 100 100 . 100 51 . . 12 88 16 7 60 7 . 4 6 6 Level 1 29 | . . . . . 46 21 55 . 11 37 55 34 40 55 95 20 72 Level 2 25 | . . . . . 2 14 44 86 . 46 37 4 52 38 . 72 20 Level 3 4 | . . . . . . 63 . . . . . . . 5 . . . Level 4 . | . . . . . . . . . . . . . . . . . . Level 5 . | . . . . . . . . . . . . . . . . . . High Security . | . . . . . . . . . . . . . . . . . . Max Security . | . . . . . . . . . . . . . . . . . . Squads Dispatched 25 | . 3 . . . 3 . . . 2 . 6 5 1 . 2 . 3 Investigation 5 | . 1 . . . 1 . . . . . . 2 1 . . . . Extermination 5 | . . . . . . . . . 2 . 2 . . . . . 1 Reinforcement 12 | . 2 . . . 2 . . . . . 4 3 . . 1 . . Assault 2 | . . . . . . . . . . . . . . . . . 2 Garrison 1 | . . . . . . . . . . . . . . . 1 . . Intercept . | . . . . . . . . . . . . . . . . . . Construction Impeded 2 | . . . . . 1 . . . . . 1 . . . . . . Haulers Reinforced 1 | . . . . . . . . . . . 1 . . . . . . Stealth | -11 -10 -10 -10 -9 -8 -8 -8 -8 -7 -7 -6 -6 -6 -6 -6 -6 -5 --------- Run | Scr Mat Min Exi Min Mat Gar Mat Gar Fac Gar Fac Ext Cet Arc Hub Gar Fac Distress Signals 7 | . . . . . 3 . . . . . 1 2 1 . . . . Communications Jammed . | . . . . . . . . . . . . . . . . . . Distress Signals . | . . . . . . . . . . . . . . . . . . Times Spotted 332 | . 22 6 . 11 52 28 . 16 12 27 35 40 19 8 8 23 25 Peak Tracking Total 13 | . 3 2 . 3 7 7 . 13 6 4 4 5 5 8 4 7 7 Tactical Retreats 26 | . 1 1 . . 2 9 . . 1 3 1 3 . . . 3 2 Traps | -11 -10 -10 -10 -9 -8 -8 -8 -8 -7 -7 -6 -6 -6 -6 -6 -6 -5 ------- Run | Scr Mat Min Exi Min Mat Gar Mat Gar Fac Gar Fac Ext Cet Arc Hub Gar Fac Traps Triggered 35 | . 1 . . . . 6 . 2 . 13 1 5 . . . 7 . Indirectly . | . . . . . . . . . . . . . . . . . . Trap Hack Attempts . | . . . . . . . . . . . . . . . . . . Triggered . | . . . . . . . . . . . . . . . . . . Disarmed . | . . . . . . . . . . . . . . . . . . Reprogrammed . | . . . . . . . . . . . . . . . . . . Reused . | . . . . . . . . . . . . . . . . . . Traps Extracted . | . . . . . . . . . . . . . . . . . . Installed . | . . . . . . . . . . . . . . . . . . Triggered . | . . . . . . . . . . . . . . . . . . Machines | -11 -10 -10 -10 -9 -8 -8 -8 -8 -7 -7 -6 -6 -6 -6 -6 -6 -5 ---------- Run | Scr Mat Min Exi Min Mat Gar Mat Gar Fac Gar Fac Ext Cet Arc Hub Gar Fac Machines Disabled 38 | . . . . . 6 2 . 2 . 4 13 5 1 . 1 2 2 Max in Single Turn 5 | . . . . . 5 1 . 1 . 1 3 1 1 . 1 1 2 Garrison Relay 9 | . . . . . . 1 . 2 . 4 . . . . . 2 . Energy Cycler 1 | . . . . . . . . . . . . 1 . . . . . Machines Sabotaged . | . . . . . . . . . . . . . . . . . . Garrisons Compromised . | . . . . . . . . . . . . . . . . . . Overloaded Fab Kills . | . . . . . . . . . . . . . . . . . . Fab Network Shutdowns . | . . . . . . . . . . . . . . . . . . Hacking | -11 -10 -10 -10 -9 -8 -8 -8 -8 -7 -7 -6 -6 -6 -6 -6 -6 -5 --------- Run | Scr Mat Min Exi Min Mat Gar Mat Gar Fac Gar Fac Ext Cet Arc Hub Gar Fac Machines Accessed 35 | . 4 . . . 9 . 2 . 5 . 2 9 1 . 1 . 2 Terminals 29 | . 4 . . . 7 . 1 . 4 . 1 9 1 . . . 2 Fabricators 1 | . . . . . . . . . . . 1 . . . . . . Repair Stations . | . . . . . . . . . . . . . . . . . . Recycling Units . | . . . . . . . . . . . . . . . . . . Scanalyzers 1 | . . . . . 1 . . . . . . . . . . . . Garrison Access 4 | . . . . . 1 . 1 . 1 . . . . . 1 . . Total Hacks 96 | . 8 . . . 29 . 4 . 13 . 7 21 6 . 1 . 7 Successful 41 | . 3 . . . 14 . 3 . 4 . 3 8 1 . 1 . 4 Failed 55 | . 5 . . . 15 . 1 . 9 . 4 13 5 . . . 3 Catastrophic 14 | . 1 . . . 2 . . . 3 . 1 7 . . . . . Database Lockouts . | . . . . . . . . . . . . . . . . . . Manual 39 | . 6 . . . 14 . 2 . 5 . . 11 1 . . . . Terminals 83 | . 8 . . . 23 . 3 . 12 . 3 21 6 . . . 7 Fabricators 4 | . . . . . . . . . . . 4 . . . . . . Repair Stations . | . . . . . . . . . . . . . . . . . . Recycling Units . | . . . . . . . . . . . . . . . . . . Scanalyzers 4 | . . . . . 4 . . . . . . . . . . . . Garrison Access 5 | . . . . . 2 . 1 . 1 . . . . . 1 . . Terminal Hacks 29 | . 3 . . . 8 . 2 . 3 . . 8 1 . . . 4 Record 1 | . . . . . 1 . . . . . . . . . . . . Part Schematic 4 | . 2 . . . . . . . 2 . . . . . . . . Robot Analysis 2 | . . . . . 1 . . . . . . 1 . . . . . Prototype ID Bank 5 | . . . . . 2 . 1 . . . . . . . . . 2 Open Door 4 | . . . . . . . . . . . . 3 1 . . . . Branch Access Points 3 | . . . . . 1 . . . . . . 1 . . . . 1 Unreport Threat 7 | . 1 . . . 1 . 1 . 1 . . 2 . . . . 1 Recall Investigation 1 | . . . . . . . . . . . . 1 . . . . . Zone Layout 2 | . . . . . 2 . . . . . . . . . . . . Fabricator Hacks 3 | . . . . . . . . . . . 3 . . . . . . Load Schematic 1 | . . . . . . . . . . . 1 . . . . . . Build 2 | . . . . . . . . . . . 2 . . . . . . Repair Station Hacks . | . . . . . . . . . . . . . . . . . . Recycling Unit Hacks . | . . . . . . . . . . . . . . . . . . Scanalyzer 4 | . . . . . 4 . . . . . . . . . . . . Insert Component 2 | . . . . . 2 . . . . . . . . . . . . Analyze 2 | . . . . . 2 . . . . . . . . . . . . Garrison Access Hacks 4 | . . . . . 1 . 1 . 1 . . . . . 1 . . Unlock Access 4 | . . . . . 1 . 1 . 1 . . . . . 1 . . Unauthorized Hacks 1 | . . . . . 1 . . . . . . . . . . . . Terminals 1 | . . . . . 1 . . . . . . . . . . . . Botnet 1 | . . . . . 1 . . . . . . . . . . . . Fabricators . | . . . . . . . . . . . . . . . . . . Repair Stations . | . . . . . . . . . . . . . . . . . . Recycling Units . | . . . . . . . . . . . . . . . . . . Scanalyzers . | . . . . . . . . . . . . . . . . . . Garrison Access . | . . . . . . . . . . . . . . . . . . Data Cores Recovered . | . . . . . . . . . . . . . . . . . . Used . | . . . . . . . . . . . . . . . . . . Hacking Detections 30 | . 4 . . . 8 . 1 . 4 . 2 9 1 . . . 1 Full Trace Events 4 | . . . . . 1 . . . . . . 2 1 . . . . Feedback Events . | . . . . . . . . . . . . . . . . . . Feedback Blocked . | . . . . . . . . . . . . . . . . . . Robot Schematics Acquired . | . . . . . . . . . . . . . . . . . . Robots Built . | . . . . . . . . . . . . . . . . . . Matter . | . . . . . . . . . . . . . . . . . . Time . | . . . . . . . . . . . . . . . . . . Total Robot Build Rating . | . . . . . . . . . . . . . . . . . . Part Schematics Acquired 4 | . 1 . . . 1 . . . 2 . . . . . . . . Parts Built 2 | . . . . . . . . . . . 2 . . . . . . Matter 204 | . . . . . . . . . . . 204 . . . . . . Time 102 | . . . . . . . . . . . 102 . . . . . . Total Part Build Rating 2 | . . . . . . . . . . . 2 . . . . . . Parts Repaired . | . . . . . . . . . . . . . . . . . . Time . | . . . . . . . . . . . . . . . . . . Parts Recycled . | . . . . . . . . . . . . . . . . . . Recycled Matter . | . . . . . . . . . . . . . . . . . . Retrieved Matter . | . . . . . . . . . . . . . . . . . . Retrieved Components . | . . . . . . . . . . . . . . . . . . Parts Scanalyzed 2 | . . . . . 2 . . . . . . . . . . . . Part Schematics Acquired 1 | . . . . . 1 . . . . . . . . . . . . Parts Damaged . | . . . . . . . . . . . . . . . . . . Bothacking | -11 -10 -10 -10 -9 -8 -8 -8 -8 -7 -7 -6 -6 -6 -6 -6 -6 -5 ------------ Run | Scr Mat Min Exi Min Mat Gar Mat Gar Fac Gar Fac Ext Cet Arc Hub Gar Fac Used RIF Installer 4 | . . . . . . 1 . 1 . 1 . . . . . 1 . Coupler Efficiency 1 | . . . . . . . . . . . . . . . . 1 . Hotswap 1 | . . . . . . . . 1 . . . . . . . . . Watcher Feeds 1 | . . . . . . . . . . 1 . . . . . . . Robots Hacked 26 | . . . . . . . . . . 8 4 11 . . 3 . . Non-combat 2 | . . . . . . . . . . . 1 1 . . . . . Combat 24 | . . . . . . . . . . 8 3 10 . . 3 . . Robot Hacks Applied 31 | . . . . . . . . . . 9 6 13 . . 3 . . parse_system 3 | . . . . . . . . . . 2 . 1 . . . . . no_distress 1 | . . . . . . . . . . . 1 . . . . . . check_alert 1 | . . . . . . . . . . . 1 . . . . . . purge_threat 4 | . . . . . . . . . . . 1 3 . . . . . disable_weapons 2 | . . . . . . . . . . . . 1 . . 1 . . go_dormant 1 | . . . . . . . . . . 1 . . . . . . . formatsys_high 19 | . . . . . . . . . . 6 3 8 . . 2 . . Relay Couplers Released 36 | . . . . . . 4 . 8 . 16 . . . . . 8 . Machine Destruction 36 | . . . . . . 4 . 8 . 16 . . . . . 8 . Attached 8 | . . . . . . . . . . 3 3 1 . . 1 . . Robots Rewired 25 | . . . . . . . . . . 1 . 24 . . . . . Allies Hacked . | . . . . . . . . . . . . . . . . . . Hacks Repelled . | . . . . . . . . . . . . . . . . . . Allies | -11 -10 -10 -10 -9 -8 -8 -8 -8 -7 -7 -6 -6 -6 -6 -6 -6 -5 -------- Run | Scr Mat Min Exi Min Mat Gar Mat Gar Fac Gar Fac Ext Cet Arc Hub Gar Fac Total Allies 54 | . . 3 . . . . . . . 6 3 35 5 . 2 . . Largest Group 24 | . . 3 3 3 . . . . . 4 2 24 9 6 2 . . Highest-Rated Group 845 | . . 40 40 40 . . . . . 73 82 845 721 626 58 . . Highest-Rated Ally 156 | . . 16 16 16 . . . . . 38 41 156 156 156 29 . . Total Orders . | . . . . . . . . . . . . . . . . . . Ally Attacks 403 | . . . . 19 . . . . . 39 9 186 91 43 16 . . Total Damage 11898 | . . . . 225 . . . . . 704 234 6103 2699 1705 228 . . Kills 88 | . . . . 3 . . . . . 3 4 40 24 12 2 . . Allies Corrupted . | . . . . . . . . . . . . . . . . . . Allies Melted . | . . . . . . . . . . . . . . . . . . Intel | -11 -10 -10 -10 -9 -8 -8 -8 -8 -7 -7 -6 -6 -6 -6 -6 -6 -5 ------- Run | Scr Mat Min Exi Min Mat Gar Mat Gar Fac Gar Fac Ext Cet Arc Hub Gar Fac Robot Analysis Total 2 | . . . . . 1 . . . . . . 1 . . . . . Derelict Logs Recovered 3 | . . 2 . 1 . . . . . . . . . . . . . Drone Launches . | . . . . . . . . . . . . . . . . . . Drone Recoveries . | . . . . . . . . . . . . . . . . . . Exploration | -11 -10 -10 -10 -9 -8 -8 -8 -8 -7 -7 -6 -6 -6 -6 -6 -6 -5 ------------- Run | Scr Mat Min Exi Min Mat Gar Mat Gar Fac Gar Fac Ext Cet Arc Hub Gar Fac Turns Passed 17941 | 95 909 857 797 815 2231 1080 86 1124 1160 2326 1695 2182 482 142 86 1249 625 Spaces Moved 7523 | 74 590 535 436 373 782 424 40 458 479 923 668 887 195 61 18 428 152 Core 4 | 3 . . . . . . . . . . . . . . . . 1 Treads 6514 | . 2 189 436 373 782 424 40 458 479 923 668 887 195 61 18 428 151 Legs . | . . . . . . . . . . . . . . . . . . Wheels 1005 | 71 588 346 . . . . . . . . . . . . . . . Hover . | . . . . . . . . . . . . . . . . . . Flight . | . . . . . . . . . . . . . . . . . . Fastest Speed 50 | 50 90 110 180 180 180 220 220 220 217 205 205 192 192 212 205 205 205 Average Speed 195 | 88 113 137 180 180 214 220 220 224 222 213 205 200 211 213 212 227 229 Slowest Speed 1900 | 100 200 200 180 180 220 220 220 225 225 217 205 205 212 220 220 240 1900 Overloaded Moves . | . . . . . . . . . . . . . . . . . . Propulsion Burnouts . | . . . . . . . . . . . . . . . . . . Robots Hopped . | . . . . . . . . . . . . . . . . . . Cave-ins Triggered . | . . . . . . . . . . . . . . . . . . Exploration Rate (%) 53 | 4 81 92 70 66 73 63 8 77 11 91 19 89 62 73 5 74 5 Regions Visited 17 Branch Regions 7 Pre-discovered Areas . | . . . . . . . . . . . . . . . . . . Known Exits Taken 8 | . . . . . 1 . 1 . 1 . 1 1 1 1 1 . . Unknown Exits Taken 5 | 1 1 1 1 1 . . . . . . . . . . . . . Scrap Searched 2 | . . 1 . 1 . . . . . . . . . . . . . Spaces Dug 5 | . . . . . 4 . . . . . 1 . . . . . . Terrain Destroyed 393 | . . 7 . . 96 67 . 35 29 1 37 22 . . 1 44 54 Melee 1 | . . . . . . . . . . . 1 . . . . . . Projectile 22 | . . . . . 7 7 . 1 . 1 . . . . 1 4 1 AOE 370 | . . 7 . . 89 60 . 34 29 . 36 22 . . . 40 53 Terrain Rammed . | . . . . . . . . . . . . . . . . . . Walls Destroyed . | . . . . . . . . . . . . . . . . . . Machines Disabled . | . . . . . . . . . . . . . . . . . . Actions | -11 -10 -10 -10 -9 -8 -8 -8 -8 -7 -7 -6 -6 -6 -6 -6 -6 -5 --------- Run | Scr Mat Min Exi Min Mat Gar Mat Gar Fac Gar Fac Ext Cet Arc Hub Gar Fac Total 9636 | 93 717 631 454 495 1133 494 39 515 559 1155 865 1239 247 71 46 607 276 Wait 637 | . 36 70 9 104 107 1 . 5 48 51 73 58 6 . . 69 . Move 7502 | 73 589 534 435 372 781 422 39 456 478 921 667 886 194 60 17 426 152 Hop . | . . . . . . . . . . . . . . . . . . Pick Up 224 | 9 16 3 5 3 57 5 . 9 7 20 17 23 10 1 4 23 12 Fast Attach 31 | 6 2 1 . . 5 1 . . 2 2 2 4 3 . . . 3 Attach 98 | 1 3 2 . . 15 . . 5 . 9 11 3 2 4 6 16 21 Detach . | . . . . . . . . . . . . . . . . . . Swap 130 | 1 3 2 1 1 17 11 . 9 8 14 22 16 10 2 6 4 3 Drop 134 | . 8 3 4 3 37 7 . 4 7 13 6 21 12 . . 2 7 Fire 620 | 3 60 16 . 12 114 39 . 21 9 78 66 50 10 . 10 54 78 Melee 19 | . . . . . . . . 2 . 1 1 12 . 1 2 . . Ram . | . . . . . . . . . . . . . . . . . . Kick . | . . . . . . . . . . . . . . . . . . Crush . | . . . . . . . . . . . . . . . . . . Escape Stasis 57 | . . . . . . 8 . 4 . 24 . 8 . . . 13 . Rewire 184 | . . . . . . . . . . 22 . 158 . 3 1 . . Trap . | . . . . . . . . . . . . . . . . . . Miscellaneous . | . . . . . . . . . . . . . . . . . . Route ------- -11/Scrapyard -10/Materials (discovered 3 exits: [*Mat x2] / [*Min]) -10/Mines (discovered 3 exits: [*Mat x2] / [*Exi]) -10/Exiles -9/Mines -8/Materials (discovered 3 exits: *Fac x2 / Gar) -8/Garrison (discovered 2 exits: *Mat x2) -8/Materials -8/Garrison (discovered 3 exits: *Fac x3) -7/Factory -7/Garrison (discovered 3 exits: *Fac x3) -6/Factory -6/Extension (discovered 3 exits: *Fac x2 / *Cet) -6/Cetus -6/Archives -6/Hub_04(d) -6/Garrison (discovered 3 exits: *Fac x3) -5/Factory (discovered 2 exits: Upp x2) History --------- Turn | Location | Event 16 | -11/Scrapyard | Discovered new exit (range 15) 96 | -11/Scrapyard | Entered Materials 230 | -10/Materials | Discovered new exit (range 7) 316 | -10/Materials | Build established: Mutant 668 | -10/Materials | Discovered new exit (range 9) 680 | -10/Materials | Lost 3 parts (1p1n1w) 821 | -10/Materials | Core integrity fell below 50% 995 | -10/Materials | Discovered new exit (range 10) 1005 | -10/Materials | Entered Mines 1090 | -10/Mines | Learned 2 Materials zone layouts 1146 | -10/Mines | Discovered new exit (range 7) 1327 | -10/Mines | Deemed a non-threat by the Exiles lab entrance 1327 | -10/Mines | Discovered new exit (range 5) 1378 | -10/Mines | Learned Materials emergency access door positions 1453 | -10/Mines | Joined a pair of Derelicts in attacking an 0b10 outpost 1540 | -10/Mines | Discovered new exit (range 9) 1563 | -10/Mines | Assisted by bots powering up and referring to "LRC-V3" 1785 | -10/Mines | Build established: Scavenger-Mutant 1862 | -10/Mines | Entered Exiles 1862 | -10/Exiles | Accompanied by 3 allies 1906 | -10/Exiles | Met 8R-AWN 1936 | -10/Exiles | Met EX-HEX 2039 | -10/Exiles | Met EX-DEC 2262 | -10/Exiles | Met EX-BIN 2615 | -10/Exiles | Discovered new exit (range 14) 2659 | -10/Exiles | Entered Mines 2659 | -9/Mines | Accompanied by 3 allies 2883 | -9/Mines | Core integrity fell below 20% 3399 | -9/Mines | Received a Rocket Launcher from a helpful Derelict 3452 | -9/Mines | Discovered new exit (range 9) 3474 | -9/Mines | Entered Materials 3474 | -8/Materials | Evolved 4 slots: Utility x4 3829 | -8/Materials | Build established: Hauler-Mutant 4538 | -8/Materials | Discovered new exit (range 19) 5473 | -8/Materials | Discovered new exit (range 10) 5702 | -8/Materials | Identified exit to Garrison 5705 | -8/Materials | Entered Garrison 5812 | -8/Garrison | Triggered checkpoint 5931 | -8/Garrison | Triggered checkpoint 5967 | -8/Garrison | Triggered checkpoint 6094 | -8/Garrison | Core integrity fell below 50% 6182 | -8/Garrison | Discovered new exit (range 8) 6353 | -8/Garrison | Discovered new exit (range 12) 6388 | -8/Garrison | Installed Relay Interface Framework 6478 | -8/Garrison | Triggered checkpoint 6505 | -8/Garrison | Garrison Relay disabled 6785 | -8/Garrison | Entered Materials 6869 | -8/Materials | Identified exit to Garrison 6871 | -8/Materials | Entered Garrison 7011 | -8/Garrison | Core integrity fell below 20% 7015 | -8/Garrison | Triggered checkpoint 7054 | -8/Garrison | Lost 3 parts (1p1n1u) 7071 | -8/Garrison | Destroyed 13 combat bots 7151 | -8/Garrison | Discovered new exit (range 12) 7375 | -8/Garrison | Discovered new exit (range 19) 7429 | -8/Garrison | Expanded RIF knowledge: Hotswap 7482 | -8/Garrison | Triggered checkpoint 7594 | -8/Garrison | Garrison Relay disabled 7734 | -8/Garrison | Triggered checkpoint 7792 | -8/Garrison | Discovered new exit (range 11) 7882 | -8/Garrison | Triggered checkpoint 7907 | -8/Garrison | Build established: Bothacker-Mutant 7910 | -8/Garrison | Garrison Relay disabled 7995 | -8/Garrison | Entered Factory 7995 | -7/Factory | Evolved 2 slots: Utility x2 8809 | -7/Factory | Destroyed 7 combat bots 9153 | -7/Factory | Identified exit to Garrison 9155 | -7/Factory | Entered Garrison 9268 | -7/Garrison | Triggered checkpoint 9341 | -7/Garrison | Garrison Relay disabled 9450 | -7/Garrison | Triggered checkpoint 9522 | -7/Garrison | Triggered checkpoint 9716 | -7/Garrison | Discovered new exit (range 12) 9753 | -7/Garrison | Expanded RIF knowledge: Patrol Navigation 9806 | -7/Garrison | Triggered checkpoint 9879 | -7/Garrison | Garrison Relay disabled 10300 | -7/Garrison | Discovered new exit (range 14) 10346 | -7/Garrison | Triggered checkpoint 10393 | -7/Garrison | Garrison Relay disabled 10584 | -7/Garrison | Triggered checkpoint 10746 | -7/Garrison | Triggered checkpoint 10811 | -7/Garrison | Garrison Relay disabled 10912 | -7/Garrison | Discovered new exit (range 9) 11481 | -7/Garrison | Entered Factory 11481 | -6/Factory | Evolved 2 slots: Utility x2 12502 | -6/Factory | Fabricated Hcp. Storage Unit (x1) 12588 | -6/Factory | Fabricated Hcp. Storage Unit? 13164 | -6/Factory | Discovered new exit (range 6) 13174 | -6/Factory | Identified exit to Extension 13176 | -6/Factory | Entered Extension 13176 | -6/Extension | Accompanied by 1 ally 13383 | -6/Extension | Door terminal overloaded 13384 | -6/Extension | Rescued a captive Derelict 13385 | -6/Extension | Rescued a captive Derelict 13930 | -6/Extension | Energy Cycler disabled 13930 | -6/Extension | Rescued a captive Derelict 13933 | -6/Extension | Rescued a captive Derelict 13935 | -6/Extension | Rescued a captive Derelict 13937 | -6/Extension | Rescued a captive Derelict 13940 | -6/Extension | Rescued a captive Derelict 13945 | -6/Extension | Rescued a captive Derelict 13950 | -6/Extension | Build established: Commander-Mutant 13953 | -6/Extension | Rescued A7 14446 | -6/Extension | Build established: Bothacker-Mutant 14514 | -6/Extension | Spotted B-75 Beast 14525 | -6/Extension | Spotted B-75 Beast 14525 | -6/Extension | Allies destroyed B-75 Beast 14528 | -6/Extension | Allies destroyed B-75 Beast 14532 | -6/Extension | Discovered new exit (range 13) 14911 | -6/Extension | Identified exit to Cetus 15272 | -6/Extension | Discovered new exit (range 10) 15288 | -6/Extension | Disrupted transfer network 15324 | -6/Extension | Identified exit to Factory 15358 | -6/Extension | Entered Cetus 15358 | -6/Cetus | Accompanied by 9 allies (A7) 15363 | -6/Cetus | Acquired a Cetus Manufacturing Module code from A7 15387 | -6/Cetus | Spotted Cetus Guard 15387 | -6/Cetus | Spotted Cetus Guard 15390 | -6/Cetus | Spotted Cetus Guard 15391 | -6/Cetus | Spotted Cetus Guard 15392 | -6/Cetus | Allies destroyed Cetus Guard 15400 | -6/Cetus | Allies destroyed Cetus Guard 15408 | -6/Cetus | Allies destroyed Cetus Guard 15416 | -6/Cetus | Allies destroyed Cetus Guard 15573 | -6/Cetus | Started Cetus Manufacturing Module 15598 | -6/Cetus | Manufactured an Enhanced Grunt 15616 | -6/Cetus | Escorted A7 to Cetus Mainframe 15623 | -6/Cetus | Manufactured an Enhanced Grunt 15648 | -6/Cetus | Manufactured an Enhanced Grunt 15673 | -6/Cetus | Manufactured an Enhanced Grunt 15698 | -6/Cetus | Manufactured an Enhanced Grunt 15736 | -6/Cetus | Discovered new exit (range 16) 15828 | -6/Cetus | Identified exit to Archives 15840 | -6/Cetus | Entered Archives 15840 | -6/Archives | Accompanied by 6 allies (A7) 15845 | -6/Archives | Received a hacking code to weaken MAIN.C 15887 | -6/Archives | Met Zhirov 15893 | -6/Archives | Reinforcements dispatched to Archives 15907 | -6/Archives | Unable to access archive contents 15938 | -6/Archives | Reinforcements dispatched to Archives 15940 | -6/Archives | Zhirov warped through subspace 15944 | -6/Archives | Discovered new exit (range 15) 15958 | -6/Archives | Zhirov detonated Archives 15959 | -6/Archives | Core integrity fell below 50% 15980 | -6/Archives | Identified exit to Hub_04(d) 15982 | -6/Archives | Entered Hub_04(d) 15989 | -6/Hub_04(d) | Lost 9 parts (1p2n4u2w) 16028 | -6/Hub_04(d) | Garrison activated, responded to threat 16066 | -6/Hub_04(d) | Identified exit to Garrison 16068 | -6/Hub_04(d) | Entered Garrison 16079 | -6/Garrison | Lost 3 parts (1p2w) 16120 | -6/Garrison | Triggered checkpoint 16123 | -6/Garrison | Core integrity fell below 20% 16213 | -6/Garrison | Garrison Relay disabled 16320 | -6/Garrison | Triggered checkpoint 16350 | -6/Garrison | Triggered checkpoint 16406 | -6/Garrison | System corruption reached 10% 16459 | -6/Garrison | Lost 11 parts (1p3n3u4w) 16554 | -6/Garrison | Discovered exit to Factory (range 10) 16872 | -6/Garrison | Discovered exit to Factory (range 8) 16966 | -6/Garrison | Triggered checkpoint 17037 | -6/Garrison | Discovered exit to Factory (range 8) 17070 | -6/Garrison | Expanded RIF knowledge: Coupler Efficiency 17160 | -6/Garrison | Triggered checkpoint 17230 | -6/Garrison | Garrison Relay disabled 17317 | -6/Garrison | Entered Factory 17317 | -5/Factory | Evolved 2 slots: Utility x2 17479 | -5/Factory | Identified exit to Upper Caves 17569 | -5/Factory | Build established: Botlord-Mutant 17578 | -5/Factory | Lost 6 parts (3n1u2w) 17617 | -5/Factory | First assault squad dispatched 17933 | -5/Factory | Core integrity fell below 50% 17942 | -5/Factory | Self-destructed Last Messages --------------- 17896_ Slug penetrates G-67 Veteran. 17898_ U-05 Engineer lays Concrete. 17900_ Lgt. Angular Momentum Engine destroyed. 17900_ U-05 Engineer lays Concrete. 17901_ Slug penetrates G-67 Veteran. 17905_ U-05 Engineer lays Concrete. 17907_ Slug penetrates G-67 Veteran. 17909_ U-05 Engineer lays Concrete. 17913_ Slug penetrates G-67 Veteran. 17915_ U-05 Engineer lays Concrete. 17916_ Slug penetrates G-67 Veteran. 17921_ Gauss Rifle destroyed. 17923_ Dropped Matter Compressor. 17923_ Extracted 250 matter. 17929_ Imp. EM Pulse Cannon destroyed. 17934_ Gauss Rifle destroyed. 17935_ Adv. Targeting Computer destroyed. 17937_ M-28 Smith fits Backup Laser III on G-50 Soldier. 17939_ Adv. Heat Sink destroyed. 17939_ Energy Well destroyed. Map ----- +----------------------------------------------------+ | ??????????????????????????????????????????????? | | ??????????????????????????????????????????????? | | ??????????????????????????????????????????????? | | ??????????????????????????????????????????????? | | ??????????????????????????????????????????????? | | ??????????????????????????????????????????????? | | ??????????????????????????????????????????????? | | ??????????????????????????????????????????????? | | ?????????????????????????????????###??????????? | | ???????????????????????????????? #??????????? | | ???????????????????????????????? #??????????? | | ???????????????????????????????? ##?????????? | | ??????????????????????????????? ??????????? | | ????????????? "??????????????? #??????????? | | ?????????????? ""?????????????? #??????????? | | ???????????????"""????????????? #??????????? | | ???????????????? ???????????? #??????????? | | ????????????????? ??????????? #??????????? | | ?????????????????? ?????????? #??????????? | | ??????????????????##+#??####### #??????????? | | ??????????????????? ?# #####??????? | | ????????????????????? #[= #??????? | | ?????????????????????? =#%* #??????? | | ???????????????????????%+%!! +??????? | | ????????????????????????#pp%u #??????? | | ????????????????????????#@=[ #??????? | | ????????????????????????# %%! #####?????????? | | ????????????????????????# =* ########+#??????? | | ????????????????????????# %! # #??????? | | ?????????#############??# + """ #??????? | | ?????????# ??# # """ #??????? | | ?????????# ?# !%! # """ #??????? | | ?????????# ##g #? #??????? | | ?????????# +mw g#? #??????? | | ?????????# # i #??#######??????? | | ?????????# # ##########??????? | | ?????????###+#########?# # #??????? | | ???????????????????????# # """ #??????? | | ????????????????########+## # """ #??????? | | ???????????????? ?# i """ #??????? | | ?????????????????""" """ ?#% # #??????? | | ???????????????? """ """ # # """[ #??????? | | ?????????????# """ """ # # """ #??????? | | ?????????????# + # """ #??????? | | ?????????????# """ # #! #??????? | | ?????????????# """ # u ##########??????? | | ?????????????+ """ ?# ## !####?????? | | ?????????????# =! ?# ## # #?????? | | ?????????????# =!??# + # ##????? | | ?????????????# = ??# ## ### #????? | +----------------------------------------------------+ Best States ------------- Heat Dissipation 97 Coolant Potential 65 Energy Generation 25 Energy Capacity 850 Matter Stores 450 Matter Capacity 450 Sight Range 22 Terrain Scan Range 16 Terrain Scan Density 10 Additional Mass Support 18 Armor Coverage 675 Resistance: EM 25 Evasion (%) 44 Targeting Accuracy 8 Core Analysis 6 Recoil Reduction 2 Energy Filtering 30 Kinecelleration 40 Offensive Hacking 20 Relay Coupler Types 37 Relay Coupler Value 4 Item Schematics ----------------- Hcp. Storage Unit | -10/Materials | Hacked Adv. Treads | -8/Materials | Scanalyzed Imp. Medium Armor Plating | -7/Factory | Hacked Lrn. Proton Cannon | -7/Factory | Hacked Robot Schematics ------------------ None Fabricated ------------ Hcp. Storage Unit | x1 | -6/Factory Hcp. Storage Unit | x1 | -6/Factory Alien Tech Used ----------------- None Achievements -------------- Just Shoot The Terminal Main Advantage Challenges ------------ None Game ------ Seed GodBlastAxe Manual? 0 Play Time 02:28:23 Cumulative 179.5 hours Start 2020.09.16 @ 16:38:22 End 2020.09.18 @ 11:06:07 Sessions 7 Manual Loads 0 Difficulty Rogue Special Mode None Game No. 207 Rogue 207 Adventurer 0 Explorer 0 Win Type - Total 2 Types 2/0/0/0/0/0/0/0/0 Lore% 60 Gallery% 73 Achievement% 55 Wizard Run 0 Options --------- ASCII 0 Keyboard 0 Movement Numpad Keybinds 0 Fullscreen 2 Font 24/Smallcaps Map View 76x50 Tactical HUD 1 Map Filters NONE Filters NONE Steam 1 RUN: 69232d63-4ae8-41ce-8da6-f3cd57bebfd7